bitfinex/quotes_SOLUSD_20241205
["timestamp","ask_amount","ask_price","bid_price","bid_amount"]
[1733363949371,1.10208683,226.34,226.29,1.5783]
[1733363951863,14.19513329,226.33,226.29,1.5783]
[1733363952053,1.10216676,226.32,226.29,1.5783]
[1733363952483,15.29720231,226.35,226.29,1.5783]
[1733363953484,14.19513329,226.33,226.29,1.5783]
[1733363953654,1.10210999,226.32,226.29,1.5783]
[1733363954679,1.10208318,226.35,226.29,1.5783]
[1733363954988,15.29721647,226.35,226.29,1.5783]
[1733363955179,14.19513329,226.34,226.29,1.5783]
[1733363955382,1.10209733,226.33,226.29,1.5783]
[1733363956265,15.29720818,226.35,226.29,1.5783]
[1733363956594,14.19513329,226.3,226.23,1.582]
[1733363956892,14.19513329,226.25,226.2,6.1727]
[1733363957066,1.10253917,226.24,226.2,6.1727]
[1733363958075,1.10252011,226.23,226.2,6.1727]
[1733363958889,15.29766062,226.26,226.11,1.5689]
[1733363959083,14.19513329,226.24,226.11,1.5689]
[1733363959288,1.10266115,226.23,226.11,1.5689]
[1733363960095,15.29779444,226.23,226.11,1.5689]
[1733363961393,14.19513329,226.22,226.11,1.5689]
[1733363961618,1.10276166,226.21,226.11,1.5689]
[1733363962395,15.29789495,226.21,226.11,1.5689]
[1733363962571,1.10276166,226.21,226.11,1.5689]
[1733363962777,1.10275151,226.2,226.11,1.5689]
[1733363963684,1.10273958,226.22,226.11,1.5689]
[1733363965101,20.0,226.24,226.11,1.5689]
[1733363965318,1.1025204,226.23,226.13,20.0]
[1733363965597,1.10246901,226.28,226.13,20.0]
[1733363966302,1.10246901,226.28,226.17,20.0]
[1733363966507,1.10224732,226.32,226.18,1.5476]
[1733363967312,15.29738061,226.32,226.18,1.5476]
[1733363967480,1.10224732,226.32,226.18,1.5476]
[1733363967790,1.10224732,226.32,226.19,6.1683]
[1733363968001,1.10218113,226.31,226.19,6.1683]
[1733363968299,1.10217315,226.34,226.19,6.1683]
[1733363968484,15.29730644,226.34,226.19,6.1683]
[1733363969226,14.19513329,226.3,226.19,6.1683]
[1733363969527,1.10238224,226.29,226.19,6.1683]
[1733363969680,15.29751553,226.29,226.19,6.1683]
[1733363970703,14.19513329,226.27,226.19,6.1683]
[1733363970893,1.10253795,226.26,226.19,6.1683]
[1733363971800,1.1024371,226.28,226.19,6.1683]
[1733363972114,15.29757039,226.28,226.19,6.1683]
[1733363974180,21.1024371,226.28,226.19,6.1683]
[1733363974521,1.1024371,226.28,226.19,6.1683]
[1733363974695,1.10227574,226.3,226.19,6.1683]
[1733363975293,1.10213259,226.34,226.19,6.1683]
[1733363975612,1.10213259,226.34,226.2,1.6637]
[1733363978786,15.29726588,226.34,226.2,1.6637]
[1733363979290,14.19513329,226.32,226.2,1.6637]
[1733363979484,1.10219889,226.31,226.2,1.6637]
[1733363979686,14.19513329,226.3,226.2,1.6637]
[1733363979889,15.29747868,226.29,226.2,1.6637]
[1733363980119,14.19513329,226.28,226.2,1.6637]
[1733363980418,1.10239768,226.27,226.2,1.6637]
[1733363981415,14.19513329,226.26,226.2,1.6637]
[1733363981590,1.10253777,226.25,226.2,1.6637]
[1733363982414,0.41,226.21,226.2,1.6637]
[1733363986212,0.41,226.21,226.12,20.0]
[1733363988507,1.51273058,226.21,226.12,20.0]
[1733363989427,0.41,226.21,226.12,20.0]
[1733363991195,1.51266761,226.21,226.09,7.6868]
[1733363991418,14.19513329,226.19,226.09,7.6868]
[1733363991598,1.10288466,226.18,226.09,7.6868]
[1733363991997,15.29801795,226.18,226.09,7.6868]
[1733363992198,14.19513329,226.17,226.09,7.6868]
[1733363992514,0.41,226.21,226.09,7.6868]
[1733363992515,15.29812238,226.16,226.09,7.6868]
[1733363993313,14.19513329,226.15,226.09,1.5014]
[1733363993522,15.2982382,226.14,226.04,7.7782]
[1733363993712,14.19513329,226.13,226.04,7.7782]
[1733363993913,1.10321027,226.12,226.04,7.7782]
[1733363994821,1.10320045,226.11,226.04,7.7782]
[1733363995536,1.10317706,226.13,226.04,7.7782]
[1733363995746,1.10292668,226.18,226.04,7.7782]
[1733363996233,14.19513329,226.14,226.04,7.7782]
[1733363996536,1.10315952,226.13,226.04,7.7782]
[1733363996736,15.29829281,226.13,226.04,7.7782]
[1733363997104,14.19513329,226.09,225.98,1.6396]
[1733363997309,1.10336798,226.08,225.98,1.6396]
[1733363997730,14.19513329,226.07,225.98,1.6396]
[1733363997934,15.29861991,226.06,225.98,1.6396]
[1733363999541,1.10348662,226.06,225.98,1.6396]
[1733363999836,14.19513329,226.07,225.98,1.6396]
[1733364000029,1.10348527,226.06,225.98,1.6396]
[1733364000757,14.19513329,226.03,225.91,20.0]
[1733364001035,15.29890019,226.02,225.91,20.0]
[1733364001508,14.19513329,226.01,225.88,7.7393]
[1733364001721,14.19513329,225.99,225.88,7.7393]
[1733364001917,15.58933329,226.05,225.88,7.7393]
[1733364001918,14.19513329,225.96,225.88,7.7393]
[1733364002114,15.29908913,225.95,225.88,7.7393]
[1733364002437,15.29908913,225.95,225.73,10.5320274]
[1733364002438,14.19513329,225.92,225.83,6.2258]
[1733364002634,14.19513329,225.89,225.82,1.5135]
[1733364002931,1.10431367,225.88,225.82,1.5135]
[1733364003512,15.29939225,225.93,225.82,1.5135]
[1733364003713,1.10425896,225.93,225.82,1.5135]
[1733364004307,1.10402424,225.97,225.82,1.5135]
[1733364004818,1.10402424,225.97,225.87,20.0]
[1733364005023,1.10375298,226.03,225.88,1.642]
[1733364005451,1.10354349,226.07,225.93,20.0]
[1733364005740,1.10354349,226.07,225.96,20.0]
[1733364005914,1.10323675,226.14,226.0,20.0]
[1733364006242,1.10323675,226.14,226.0,155.8]
[1733364006441,1.10323675,226.14,226.0,25.0]
[1733364006613,1.10323675,226.14,225.97,6.5788]
[1733364006614,1.10286915,226.2,226.03,5.0]
[1733364006816,1.10286915,226.2,226.05,6.5945]
[1733364007029,1.10286915,226.2,226.08,20.0]
[1733364007237,15.29800244,226.2,226.05,6.5945]
[1733364007431,14.19513329,226.19,226.05,6.5945]
[1733364007628,1.10290288,226.18,226.05,6.5945]
[1733364007815,14.19513329,226.12,226.05,6.5945]
[1733364008014,14.19513329,226.12,226.01,1.5993]
[1733364008015,22.72677686,226.1,226.01,1.5993]
[1733364008242,23.83008595,226.09,226.01,1.5993]
[1733364008932,22.72677686,226.04,225.93,7.9043]
[1733364009139,1.10364864,226.03,225.93,7.9043]
[1733364009446,1.10356183,226.05,225.93,7.9043]
[1733364010022,22.72677686,226.16,225.96,20.0]
[1733364010023,1.10342258,226.08,225.96,20.0]
[1733364010418,20.0,226.1,225.96,20.0]
[1733364010652,23.83005947,226.09,225.96,20.0]
[1733364010821,22.72677686,226.08,225.93,7.9043]
[1733364011019,23.83023359,226.07,225.93,7.9043]
[1733364011235,22.72677686,226.06,225.93,7.9043]
[1733364011545,22.72677686,226.04,225.93,7.9043]
[1733364011757,1.10363028,226.03,225.93,7.9043]
[1733364012238,25.0,226.13,225.93,7.9043]
[1733364012239,1.10361796,226.05,225.93,7.9043]
[1733364012616,1.10339317,226.08,225.96,20.0]
[1733364013524,1.10317118,226.11,225.96,20.0]
[1733364013825,1.10317118,226.11,225.96,25.59893495]
[1733364014028,1.10317118,226.11,225.96,20.0]
[1733364014226,1.10317118,226.11,225.96,25.59893495]
[1733364014429,1.10309105,226.14,226.0,20.0]
[1733364015035,1.10309105,226.14,226.01,20.0]
[1733364016155,23.82986791,226.14,225.99,2.25236831]
[1733364016353,23.82986791,226.14,225.97,20.0]
[1733364016855,22.72677686,226.08,225.96,20.0]
[1733364017041,22.72677686,226.05,225.93,7.9043]
[1733364017352,22.72677686,226.03,225.93,7.9043]
[1733364017537,1.10363371,226.02,225.93,7.9043]
[1733364017734,1.10349277,226.07,225.93,7.9043]
[1733364018158,23.83007851,226.14,225.94,5.0]
[1733364018457,1.10330165,226.14,225.96,5.0]
[1733364018951,1.10330165,226.14,225.97,20.0]
[1733364019194,1.10302248,226.16,226.0,28.037]
[1733364019953,22.72677686,226.14,226.0,28.037]
[1733364020134,1.10314664,226.13,226.0,28.037]
[1733364020540,23.8299235,226.13,226.0,28.037]
[1733364020748,22.72677686,226.1,226.0,8.037]
[1733364020931,1.10333864,226.09,226.0,8.037]
[1733364021846,23.8301155,226.09,226.0,8.037]
[1733364022033,22.72677686,226.08,226.0,8.037]
[1733364022233,1.10347405,226.07,226.0,8.037]
[1733364023272,1.10342467,226.06,226.0,8.037]
[1733364023863,22.72677686,226.04,225.95,6.5376]
[1733364024176,1.10364255,226.03,225.95,6.5376]
[1733364025061,1.10357577,226.02,225.95,6.5376]
[1733364025447,1.10357288,226.05,225.95,6.5376]
[1733364026476,1.10334402,226.09,225.95,6.5376]
[1733364026769,23.83012088,226.09,225.95,6.5376]
[1733364026978,1.10334402,226.09,225.95,6.5376]
[1733364027278,1.10334402,226.09,225.98,20.0]
[1733364027568,6.3842,226.19,225.98,20.0]
[1733364027569,1.10323996,226.1,225.98,20.0]
[1733364027771,1.10308796,226.14,225.98,20.0]
[1733364027945,22.72677686,226.12,225.98,20.0]
[1733364028155,22.72677686,226.1,225.95,6.5376]
[1733364028465,23.83020039,226.09,225.95,6.5376]
[1733364029061,22.72677686,226.06,225.95,6.5376]
[1733364029251,23.83035455,226.05,225.95,6.5376]
[1733364029556,1.10357769,226.05,225.95,6.5376]
[1733364029753,1.10334506,226.08,225.95,6.5376]
[1733364030172,1.1032958,226.09,225.98,20.0]
[1733364030479,1.1032958,226.14,225.99,1.5301]
[1733364030885,1.1032958,226.14,226.0,6.2845]
[1733364031181,1.10292512,226.18,226.03,20.0]
[1733364031360,1.10292512,226.18,226.04,1.6163]
[1733364031558,1.5126912,226.21,226.08,20.0]
[1733364032172,0.41,226.21,226.08,20.0]
[1733364032371,0.41,226.21,226.06,11.0586]
[1733364032372,0.41,226.21,226.14,135.8]
[1733364032573,0.41,226.21,226.09,20.0]
[1733364033055,23.82926001,226.35,226.15,20.0]
[1733364033267,11.4241,226.39,226.15,20.0]
[1733364033268,22.72677686,226.31,226.15,20.0]
[1733364033592,1.10232259,226.3,226.15,20.0]
[1733364034086,1.10228625,226.31,226.16,20.0]
[1733364034285,1.10207166,226.36,226.16,20.0]
[1733364034882,1.10207166,226.36,226.21,20.0]
[1733364035086,1.10189916,226.4,226.21,20.0]
[1733364035388,22.72677686,226.35,226.21,20.0]
[1733364035564,1.1021447,226.34,226.18,6.3641]
[1733364035764,22.72677686,226.31,226.18,6.3641]
[1733364035987,1.10230396,226.3,226.21,20.0]
[1733364036159,1.10207428,226.35,226.21,20.0]
[1733364036971,22.72677686,226.34,226.18,6.3641]
[1733364037160,1.10226816,226.33,226.18,6.3641]
[1733364037380,1.10226816,226.33,226.21,20.0]
[1733364038100,1.10217335,226.32,226.21,20.0]
[1733364038773,1.10217335,226.32,226.18,6.3641]
[1733364039099,1.10223072,226.31,226.18,6.3641]
[1733364039877,23.82900758,226.31,226.18,6.3641]
[1733364040089,22.72677686,226.3,226.18,6.3641]
[1733364040264,1.10246872,226.29,226.18,6.3641]
[1733364040867,22.72677686,226.28,226.18,6.3641]
[1733364041070,42.72677686,226.24,226.18,6.3641]
[1733364041292,1.1026579,226.23,226.18,6.3641]
[1733364042083,22.72677686,226.2,226.12,6.1039]
[1733364042279,22.72677686,226.17,226.12,6.1039]
[1733364042499,22.72677686,226.27,225.91,223.1]
[1733364042500,22.72677686,226.14,226.05,6.1039]
[1733364042801,1.10321509,226.13,226.05,6.1039]
[1733364043980,1.10318497,226.12,226.05,6.1039]
[1733364044997,1.10318228,226.11,226.05,6.1039]
[1733364045202,23.82995914,226.11,226.05,6.1039]
[1733364045502,22.72677686,226.09,226.03,1.5859]
[1733364045676,1.07245947,226.08,226.03,1.5859]
[1733364046083,1.07242763,226.1,226.03,1.5859]
[1733364046283,20.0,226.12,226.03,1.5859]
[1733364046509,1.07220229,226.11,226.03,1.5859]
[1733364046682,1.07220172,226.15,226.03,1.5859]
[1733364046998,22.72677686,226.14,226.03,1.5859]
[1733364047302,20.0,226.1,226.03,1.5859]
[1733364047499,1.07238809,226.09,226.03,1.5859]
[1733364048000,22.72677686,226.15,226.03,1.5859]
[1733364048001,22.72677686,226.13,226.03,1.5859]
[1733364048181,1.07237984,226.12,226.03,1.5859]
[1733364048581,22.72677686,226.11,226.03,1.5859]
[1733364048785,1.07240253,226.1,226.03,1.5859]
[1733364049680,1.07236761,226.09,226.03,1.5859]
[1733364050708,1.07236261,226.08,226.03,1.5859]
[1733364051090,22.72677686,226.07,225.98,6.1512]
[1733364051404,5.0,226.13,225.98,6.1512]
[1733364051405,23.79939022,226.06,225.98,6.1512]
[1733364051781,22.72677686,226.05,225.98,6.1512]
[1733364052002,22.72677686,226.01,225.96,1.6316]
[1733364052309,22.72677686,225.97,225.89,1.6316]
[1733364052474,22.72677686,225.95,225.89,1.6316]
[1733364052673,1.07312325,225.94,225.89,1.6316]
[1733364053811,1.07304309,225.93,225.89,1.6316]
[1733364054507,23.79982326,225.96,225.89,1.6316]
[1733364055514,42.72677686,225.93,225.86,6.1512]
[1733364055686,1.07329837,225.92,225.86,6.1512]
[1733364056302,22.72677686,225.91,225.86,6.1512]
[1733364056509,1.07333998,225.9,225.82,1.6288]
[1733364057195,23.80011684,225.9,225.82,1.6288]
[1733364057399,22.72677686,225.88,225.82,1.6288]
[1733364057709,1.07333998,225.9,225.82,1.6288]
[1733364057710,1.07349481,225.87,225.82,1.6288]
[1733364058603,1.07346728,225.86,225.82,1.6288]
[1733364058916,1.07346728,225.86,225.73,0.5320274]
[1733364059405,22.72677686,225.85,225.73,0.5320274]
[1733364059609,1.07363174,225.84,225.73,0.5320274]
[1733364060225,1.07363174,225.84,225.74,20.0]
[1733364060419,1.07363174,225.84,225.73,0.5320274]
[1733364060712,1.07364222,225.83,225.73,0.5320274]
[1733364061312,22.72677686,225.76,225.73,0.5320274]
[1733364061493,1.07404091,225.75,225.73,0.5320274]
[1733364062214,1.07389726,225.78,225.73,0.5320274]
[1733364062510,22.72677686,225.77,225.73,0.5320274]
[1733364062711,23.80083465,225.76,225.73,0.5320274]
[1733364062892,22.72677686,225.74,225.73,0.5320274]
[1733364063097,23.80094776,225.74,225.73,0.5320274]
[1733364064124,1.0741709,225.74,225.73,0.5320274]
[1733364064419,1.07405847,225.77,225.73,0.5320274]
[1733364064642,1.07380203,225.81,225.73,0.5320274]
[1733364065491,1.07365102,225.84,225.73,0.5320274]
[1733364066016,23.80042788,225.84,225.73,0.5320274]
[1733364066188,22.72677686,225.83,225.73,0.5320274]
[1733364066394,23.80059094,225.82,225.73,0.5320274]
[1733364066617,1.07381408,225.82,225.73,0.5320274]
[1733364067120,136.3,225.9,225.73,0.5320274]
[1733364067121,1.07360259,225.85,225.74,1.6412]
[1733364067284,22.72677686,225.83,225.74,1.6412]
[1733364067488,22.72677686,225.81,225.74,1.6412]
[1733364067789,1.0738257,225.8,225.74,1.6412]
[1733364068184,1.07366342,225.84,225.74,1.6412]
[1733364069204,1.07359925,225.86,225.75,6.0204]
[1733364069632,1.07337241,225.91,225.75,6.0204]
[1733364069788,1.07337241,225.91,225.78,20.0]
[1733364069992,22.72677686,225.96,225.78,20.0]
[1733364069993,1.07313786,225.95,225.78,20.0]
[1733364070804,1.07313786,225.95,225.78,31.0724]
[1733364071011,1.0730245,225.98,225.79,21.5913]
[1733364071207,22.72677686,225.96,225.81,20.0]
[1733364071400,1.0731548,225.95,225.81,20.0]
[1733364072299,1.07304374,225.94,225.79,1.5913]
[1733364072814,1.07300862,225.97,225.8,20.0]
[1733364073031,23.79978548,225.97,225.8,20.0]
[1733364073324,22.72677686,225.96,225.8,20.0]
[1733364073528,22.72677686,225.91,225.79,1.5913]
[1733364073694,1.07332254,225.9,225.79,1.5913]
[1733364074123,22.72677686,225.88,225.79,1.5913]
[1733364074319,1.07349338,225.87,225.79,1.5913]
[1733364075020,1.0733067,225.92,225.79,1.5913]
[1733364075524,1.07301561,225.97,225.8,6.3712]
[1733364075724,1.07301561,225.97,225.83,20.0]
[1733364076028,23.79960144,226.01,225.84,21.5029]
[1733364076323,1.07282458,226.01,225.84,21.5029]
[1733364076620,1.07282458,226.01,225.86,20.0]
[1733364076829,1.07280284,226.0,225.87,6.3044]
[1733364077197,1.07282018,226.03,225.9,20.0]
[1733364077807,23.79959704,226.03,225.9,20.0]
[1733364078032,1.07282018,226.03,225.9,20.0]
[1733364078401,1.07272415,226.02,225.9,20.0]
[1733364079322,1.0727349,226.01,225.9,20.0]
[1733364080396,1.07271845,226.0,225.9,20.0]
[1733364080597,1.07278301,226.03,225.9,20.0]
[1733364081814,1.3942,226.14,225.87,6.3044]
[1733364081815,1.07270931,226.02,225.92,1.5277]
[1733364081998,1.07249115,226.08,225.92,1.5277]
[1733364082195,1.07249115,226.08,225.96,20.0]
[1733364082727,1.07230027,226.13,225.96,20.0]
[1733364083032,1.07230027,226.13,225.97,20.0]
[1733364083328,1.07230027,226.13,225.98,1.5095]
[1733364083622,38.02743481,226.13,225.99,6.5849]
[1733364083824,1.07230027,226.13,226.02,20.0]
[1733364084034,1.07215528,226.12,226.02,20.0]
[1733364084242,1.07219596,226.15,226.02,20.0]
[1733364084839,1.07198291,226.18,226.04,6.5849]
[1733364085009,38.02695133,226.22,226.07,20.0]
[1733364085205,1.07181679,226.22,226.08,20.0]
[1733364086011,1.07170793,226.21,226.08,20.0]
[1733364086239,1.07163066,226.25,226.12,20.0]
[1733364086534,1.07146191,226.29,226.13,1.5936]
[1733364087232,1.07146191,226.29,226.13,21.5936]
[1733364087434,36.95513454,226.31,226.13,21.5936]
[1733364087724,36.95513454,226.28,226.13,1.5936]
[1733364087931,1.07162295,226.27,226.13,1.5936]
[1733364088803,1.0715367,226.26,226.13,1.5936]
[1733364090034,1.07157883,226.25,226.13,1.5936]
[1733364090209,1.07155661,226.28,226.13,1.5936]
[1733364090417,38.02669115,226.28,226.13,1.5936]
[1733364090626,1.07155661,226.28,226.13,1.5936]
[1733364091140,1.07143737,226.27,226.15,20.0]
[1733364091337,1.07144112,226.3,226.15,20.0]
[1733364092326,1.07144112,226.3,226.16,6.1915]
[1733364092545,36.95513454,226.38,226.16,6.1915]
[1733364092546,1.07139201,226.31,226.2,1.5708]
[1733364092726,1.07110772,226.37,226.2,21.5708]
[1733364093047,1.07110772,226.37,226.24,20.0]
[1733364093632,1.0708428,226.41,226.25,1.5687]
[1733364094333,1.0708428,226.41,226.29,20.0]
[1733364094659,1.03964186,226.46,226.32,137.4118]
[1733364094853,36.95513454,226.45,226.32,1.6118]
[1733364095022,1.07076007,226.44,226.32,1.6118]
[1733364095449,0.5320274,226.51,226.36,20.0]
[1733364095450,1.07054271,226.48,226.36,20.0]
[1733364096527,1.07047187,226.47,226.36,20.0]
[1733364096861,38.02562123,226.5,226.36,20.0]
[1733364097061,1.07048669,226.5,226.36,20.0]
[1733364097861,36.95513454,226.49,226.36,20.0]
[1733364098029,1.07052678,226.48,226.36,20.0]
[1733364098855,1.07039832,226.5,226.36,20.0]
[1733364100063,36.95513454,226.46,226.33,6.303]
[1733364100240,1.07074933,226.45,226.33,6.303]
[1733364100434,1.07056451,226.46,226.33,6.303]
[1733364100624,1.60239898,226.51,226.33,6.303]
[1733364100955,36.95513454,226.49,226.33,6.303]
[1733364101129,36.95513454,226.47,226.33,6.303]
[1733364101332,38.0258075,226.46,226.33,6.303]
[1733364101527,36.95513454,226.45,226.33,6.303]
[1733364101855,1.07070784,226.44,226.33,6.303]
[1733364102024,38.02584238,226.44,226.33,6.303]
[1733364102224,36.95513454,226.38,226.33,6.303]
[1733364102428,36.95513454,226.36,226.32,1.6118]
[1733364102657,1.07112379,226.35,226.32,1.6118]
[1733364103359,36.95513454,226.34,226.27,6.1881]
[1733364103557,1.07131362,226.33,226.27,6.1881]
[1733364103946,1.07114179,226.36,226.27,6.1881]
[1733364104947,1.0709769,226.37,226.27,6.1881]
[1733364105153,1.07083708,226.42,226.27,6.1881]
[1733364105434,36.95513454,226.4,226.27,6.1881]
[1733364105642,1.07095343,226.39,226.27,6.1881]
[1733364106166,36.95513454,226.38,226.27,6.1881]
[1733364106467,5.0,226.45,226.27,6.1881]
[1733364106468,0.41,226.3,226.27,6.1881]
[1733364109872,0.41,226.3,226.25,1.6108]
[1733364110041,38.02647276,226.29,226.25,1.6108]
[1733364110351,36.95513454,226.28,226.22,6.3138]
[1733364110549,1.07154418,226.27,226.22,6.3138]
[1733364110771,56.95513454,226.25,226.18,1.5004]
[1733364111074,36.95513454,226.23,226.18,1.5004]
[1733364111265,1.07182332,226.22,226.18,1.5004]
[1733364112143,36.95513454,226.2,226.15,6.3138]
[1733364112342,38.02708025,226.19,226.15,6.3138]
[1733364112562,38.02708025,226.19,226.11,1.6426]
[1733364112864,36.95513454,226.18,226.11,1.6426]
[1733364113068,1.07199644,226.17,226.11,1.6426]
[1733364113250,1.07182178,226.22,226.11,1.6426]
[1733364113949,1.07155856,226.26,226.13,20.0]
[1733364114250,1.07155856,226.26,226.11,1.6426]
[1733364114251,1.48136087,226.3,226.14,20.0]
[1733364114459,1.48136087,226.3,226.18,20.0]
[1733364114636,0.41,226.3,226.19,1.5585]
[1733364115076,38.43647551,226.3,226.19,1.5585]
[1733364115243,1.48134097,226.3,226.19,1.5585]
[1733364116652,0.41,226.3,226.19,1.5585]
[1733364116858,1.48126301,226.3,226.19,1.5585]
[1733364117975,36.95513454,226.29,226.19,1.5585]
[1733364118175,1.07152967,226.28,226.19,1.5585]
[1733364120165,1.07125768,226.27,226.19,1.5585]
[1733364121268,1.07146233,226.26,226.19,1.5585]
[1733364121448,22.68153883,226.25,226.19,1.5585]
[1733364121660,23.75326061,226.24,226.19,1.5585]
[1733364122160,23.75326061,226.24,226.15,6.3921]
[1733364122646,22.68153883,226.23,226.15,6.3921]
[1733364122842,22.68153883,226.21,226.15,6.3921]
[1733364123058,1.071962,226.2,226.15,6.3921]
[1733364123951,1.07199455,226.19,226.13,1.5375]
[1733364124483,23.75353338,226.19,226.13,1.5375]
[1733364124647,20.0,226.16,226.1,6.1971]
[1733364124857,1.07213876,226.15,226.1,6.1971]
[1733364125047,20.0,226.14,226.1,6.1971]
[1733364125288,1.07219432,226.13,226.1,6.1971]
[1733364125773,1.07200072,226.18,226.1,6.1971]
[1733364126563,23.75331412,226.24,226.1,6.1971]
[1733364126780,22.68153883,226.22,226.1,6.1971]
[1733364127076,22.68153883,226.27,226.1,6.1971]
[1733364127077,22.68153883,226.2,226.1,6.1971]
[1733364127274,1.07201885,226.19,226.1,6.1971]
[1733364127681,23.75355768,226.19,226.1,6.1971]
[1733364128053,1.07201885,226.19,226.1,6.1971]
[1733364128259,1.07188517,226.18,226.1,6.1971]
[1733364128479,20.0,226.25,226.1,6.1971]
[1733364128480,22.68153883,226.21,226.1,6.1971]
[1733364128780,1.07197036,226.2,226.1,6.1971]
[1733364128965,1.07175032,226.23,226.1,6.1971]
[1733364129154,22.68153883,226.22,226.1,6.1971]
[1733364129359,23.7535005,226.21,226.1,6.1971]
[1733364129670,22.68153883,226.2,226.1,6.1971]
[1733364129980,1.07195682,226.19,226.1,6.1971]
[1733364130459,1.07175375,226.23,226.1,6.1971]
[1733364131765,1.07162488,226.22,226.1,6.1971]
[1733364132161,23.75316371,226.22,226.1,6.1971]
[1733364132360,22.68153883,226.2,226.1,6.1971]
[1733364132581,22.68153883,226.18,226.1,6.1971]
[1733364132790,1.07192632,226.17,226.1,6.1971]
[1733364133889,23.75356194,226.16,226.1,6.1971]
[1733364134066,1.07202311,226.16,226.1,6.1971]
[1733364134898,1.07205626,226.15,226.1,6.1971]
[1733364135462,20.0,226.2,226.1,6.1971]
[1733364135667,1.07183054,226.19,226.1,6.1971]
[1733364135882,22.68153883,226.22,226.1,6.1971]
[1733364136084,1.07183219,226.21,226.1,6.1971]
[1733364136594,1.07166189,226.23,226.14,1.5369]
[1733364136993,1.0715785,226.26,226.14,1.5369]
[1733364137197,1.0715785,226.26,226.15,6.0095]
[1733364137399,1.48134258,226.3,226.15,6.0095]
[1733364137901,1.48134258,226.3,226.18,20.0]
[1733364138697,1.07114198,226.29,226.18,20.0]
[1733364139477,0.41,226.3,226.18,20.0]
[1733364142173,0.41,226.3,226.22,6.2514]
[1733364142896,0.41,226.3,226.25,20.0]
[1733364143120,1.07103254,226.43,226.29,20.0]
[1733364143290,1.60267166,226.51,226.37,6.4295]
[1733364144019,1.60267166,226.51,226.4,20.0]
[1733364144190,0.5320274,226.51,226.41,1.5064]
[1733364147322,1.07034603,226.5,226.41,1.5064]
[1733364147530,0.5320274,226.51,226.41,1.5064]
[1733364147694,0.5320274,226.51,226.42,20.0]
[1733364148032,0.5320274,226.51,226.46,20.0]
[1733364148207,1.07000012,226.61,226.46,20.0]
[1733364148407,1.06980773,226.65,226.5,20.0]
[1733364148598,1.06966675,226.73,226.54,20.0]
[1733364149627,1.06966675,226.73,226.54,25.67498495]
[1733364149817,1.06966675,226.73,226.54,20.0]
[1733364150006,23.75120558,226.73,226.54,20.0]
[1733364150403,22.68153883,226.7,226.54,20.0]
[1733364150614,1.06953876,226.69,226.54,20.0]
[1733364151609,1.06943778,226.73,226.54,20.0]
[1733364151810,22.68153883,226.72,226.54,20.0]
[1733364152023,23.75105796,226.71,226.54,20.0]
[1733364152434,22.68153883,226.7,226.54,20.0]
[1733364152606,22.68153883,226.68,226.51,7.7309]
[1733364152800,1.06966275,226.67,226.51,7.7309]
[1733364153007,1.06943807,226.72,226.51,13.40588495]
[1733364153229,21.06943807,226.72,226.52,5.67498495]
[1733364153744,21.06943807,226.72,226.55,20.0]
[1733364154112,1.06943807,226.72,226.56,7.5347]
[1733364154310,1.06943807,226.72,226.59,20.0]
[1733364154623,1.06943807,226.72,226.63,20.0]
[1733364154943,0.5320274,226.74,226.64,1.5312]
[1733364157012,1.0690774,226.73,226.64,1.5312]
[1733364157323,22.68153883,226.72,226.64,1.5312]
[1733364157539,22.68153883,226.7,226.64,1.5312]
[1733364157735,1.06943811,226.69,226.64,1.5312]
[1733364158118,22.68153883,226.68,226.64,1.5312]
[1733364158322,22.68153883,226.66,226.6,6.0035]
[1733364158541,1.06965242,226.65,226.6,6.0035]
[1733364158724,23.75119125,226.65,226.6,6.0035]
[1733364158918,22.68153883,226.63,226.57,1.6299]
[1733364159133,1.06985133,226.62,226.57,1.6299]
[1733364159346,1.06965394,226.64,226.57,1.6299]
[1733364159943,23.75119277,226.64,226.57,1.6299]
[1733364160518,1.06965394,226.64,226.57,1.6299]